Cogmind - Beta 15 @@@ ROGUE MODE // 2025.08.28 @ 19:03:03 Player: beans Result: Destroyed by G-47 Trooper with Particle Gun Performance ------------- Evolutions (2) 1000 Regions Visited (6) 1200 Robots Destroyed (134) 670 Value Destroyed (2767) 2767 Prototype IDs (10) 200 Alien Tech Used (0) 0 Bonus (537) 537 TOTAL SCORE: 6374 Bonus ------- High Alert Combat Kills 164 Follower Combat Kills 173 Entered Garrisons 200 Cogmind --------- Core Integrity 0/550 Matter 44/300 Energy 99/100 System Corruption 0% Temperature Cool (18) Movement Core (350) Ox6 Location -8/Materials Parts ------- > --- POWER (1) -------- (None) > --- PROPULSION (2) --- (None) > --- UTILITY (6) ------ Large Storage Unit Machine Analyzer Improved Targeting Computer Weapon Cycler Hacking Suite System Shield > --- WEAPON (2) ------- (None) > --- INVENTORY (15) --- Light Treads Compact Matter Pod (150) Matter Filter Weapon Cycler Advanced ECM Suite Hacking Suite Hacking Suite Improved Spread Laser Rocket Launcher Mini Grenade Launcher Peak State ------------ > --- POWER ------------ Light Deuterium Engine > --- PROPULSION ------- Light Treads Light Treads > --- UTILITY ---------- Compact Matter Pod Machine Analyzer Improved Targeting Computer Matter Filter Hacking Suite System Shield > --- WEAPON ----------- Minigun Minigun > --- INVENTORY -------- Improved Spread Laser Heavy Assault Rifle High-powered Shotgun Grenade Launcher Mini Grenade Launcher [Rating: 30] Favorites ----------- Power Light Deuterium Engine Engine Light Deuterium Engine Propulsion Light Treads Treads Light Treads Utility Improved Targeting Computer Device Weapon Cycler Storage Large Storage Unit Processor Improved Targeting Computer Hackware Hacking Suite Protection Power Shielding Weapon Minigun Energy Gun Beam Rifle Ballistic Gun Minigun Ballistic Cannon Light Cannon Launcher Mini Grenade Launcher Build | -11 -10 -10 -9 -8 -8 -8 ------- Run | Yrd Mat Min Mat Mat Gar Mat Slots Evolved 4 | . . . 2 2 . . Power . | . . . . . . . Propulsion . | . . . . . . . Utility 4 | . . . 2 2 . . Weapon . | . . . . . . . Parts Attached 42 | 3 1 1 16 20 1 . Power 4 | 1 . . 1 2 . . Engine 4 | 1 . . 1 2 . . Core . | . . . . . . . Reactor . | . . . . . . . Propulsion 12 | 2 . . 5 5 . . Treads 12 | 2 . . 5 5 . . Leg . | . . . . . . . Wheel . | . . . . . . . Hover . | . . . . . . . Flight . | . . . . . . . Utility 10 | . 1 . 2 7 . . Device 2 | . . . . 2 . . Storage 2 | . . . . 2 . . Processor 3 | . . . 2 1 . . Hackware 2 | . . . . 2 . . Protection 1 | . 1 . . . . . Artifact . | . . . . . . . Weapon 16 | . . 1 8 6 1 . Energy Gun 2 | . . . 1 1 . . Energy Cannon . | . . . . . . . Ballistic Gun 8 | . . . 5 3 . . Ballistic Cannon 1 | . . 1 . . . . Launcher 5 | . . . 2 2 1 . Special Weapon . | . . . . . . . Impact Weapon . | . . . . . . . Slashing Weapon . | . . . . . . . Piercing Weapon . | . . . . . . . Special Melee Weapon . | . . . . . . . Unidentified Prototypes 2 | . . . 1 1 . . Parts Lost 28 | . . 1 16 5 2 4 Power 3 | . . . 2 . . 1 Propulsion 12 | . . . 7 3 1 1 Utility 2 | . . . 2 . . . Weapon 11 | . . 1 5 2 1 2 Highest Loss Streak 5 | . . 1 5 2 2 2 To Critical Strikes 2 | . . . 1 1 . . Average Backups 3 | . . . 2 5 6 8 Power . | . . . . . . . Propulsion . | . . . . . . 1 Utility . | . . . . . 3 4 Weapon 2 | . . . 2 3 3 3 Tool/Special . | . . . . . . . Unused Backups 5 | . . . . . . 5 Power . | . . . . . . . Propulsion 1 | . . . . . . 1 Utility 3 | . . . . . . 3 Weapon 1 | . . . . . . 1 Tool/Special . | . . . . . . . Average Slot Usage (%) 74 | . 45 68 70 77 93 84 Engine 6 | . 14 14 4 4 9 6 Treads 15 | . 28 28 17 12 11 7 Device 2 | . . . . 4 9 9 Storage 4 | . . . . 6 9 9 Processor 16 | . . . 20 17 18 18 Hackware 8 | . . . . 13 18 18 Protection 4 | . 3 14 9 . . . Energy Gun 1 | . . . . 2 . . Ballistic Gun 11 | . . . 16 12 9 8 Ballistic Cannon 1 | . . 11 . . . . Launcher 2 | . . . 1 2 9 8 Peak Build Rating 30 | 3 4 5 14 30 28 26 Average Rating 16 | 2 3 4 10 22 26 24 On Entrance 10 | . 3 4 4 6 28 26 Naked Turns . | . . . . . . . Heaviest Build 33 | 3 4 7 15 33 33 32 Greatest Support 40 | 40 40 40 40 40 40 20 Greatest Overweight (x) 10 | . . . 3 10 1 8 Average Overweight (x) . | . . . . . . 1 Largest Inventory Capacity 15 | 5 5 5 5 15 15 15 Average Capacity 7 | 5 5 5 5 8 15 15 Most Carried 10 | 2 1 1 5 10 7 10 Average Carried 3 | . . . 2 5 6 8 Final Capacity 15 | 5 5 5 5 15 15 15 Final Carried 10 | . . . 1 7 7 10 Class Distribution -------------------- 50% | Mutant 34% | Hacker-Mutant 14% | Scavenger-Mutant Dominant Class ---------------- Mutant | -10/Materials Mutant | -10/Mines Scavenger-Mutant | -9/Materials Hacker-Mutant | -8/Materials Hacker-Mutant | -8/Garrison Hacker-Mutant | -8/Materials Resources | -11 -10 -10 -9 -8 -8 -8 ----------- Run | Yrd Mat Min Mat Mat Gar Mat Matter Collected 2337 | 184 19 145 619 1290 40 40 Remotely . | . . . . . . . Salvage Created 3597 | . . 235 1073 2085 85 119 Parts 277 | . . 22 87 144 12 12 Haulers Intercepted 7 | . . . 3 4 . . Recyclers Shooed 7 | . . 1 3 3 . . Parts Field Recycled . | . . . . . . . Retrieved Matter . | . . . . . . . Parts Self-Destructed . | . . . . . . . Prevented . | . . . . . . . Kills | -11 -10 -10 -9 -8 -8 -8 ------- Run | Yrd Mat Min Mat Mat Gar Mat Combat Hostiles Destroyed 77 | . . 8 26 29 8 6 Guns 34 | . . . 15 16 . 3 Cannons 8 | . . 8 . . . . AOE 35 | . . . 11 13 8 3 Classes Destroyed 13 | . . 5 4 4 . . Worker 8 | . . 1 3 4 . . Builder 17 | . . 1 5 10 . 1 Tunneler 2 | . . . . 2 . . Hauler 7 | . . . 3 4 . . Recycler 11 | . . 1 2 8 . . Mechanic 1 | . . . 1 . . . Operator 2 | . . . . 1 . 1 Watcher 9 | . . . 3 5 . 1 Swarmer 32 | . . 6 11 3 7 5 Grunt 26 | . . 2 9 15 . . Brawler 1 | . . . . 1 . . Duelist 3 | . . . . 3 . . Sentry 15 | . . . 6 7 1 1 Best Kill Streak 12 | . . 4 12 11 5 5 Combat Bots Only 9 | . . 3 9 6 5 3 Max Kills in Single Turn 6 | . . 1 2 6 3 1 Gunslinging . | . . . . . . . Exploded 3 | . . . 2 2 3 1 Melee . | . . . . . . . Uniques/NPCs Destroyed . | . . . . . . . Combat | -11 -10 -10 -9 -8 -8 -8 -------- Run | Yrd Mat Min Mat Mat Gar Mat Hostile Shots Fired 418 | . 24 34 222 91 14 33 Missed 132 | . 8 11 72 30 3 8 Hits 286 | . 16 23 150 61 11 25 Melee 12 | . . . 2 10 . . Projectile 274 | . 16 23 148 51 11 25 Critical Strikes 7 | . . . 1 5 . 1 Damage Taken 4018 | . 243 245 1827 1238 164 301 Core 1096 | . 80 60 392 430 22 112 Absorbed by Shields . | . . . . . . . Redirected to Shielding 23 | . 3 8 12 . . . Core Remaining (%) 48 | 100 . 44 2 . . . Volleys Fired 310 | . . 27 122 136 7 18 Largest 2 | . . 1 2 2 1 1 Hottest 86 | . . 30 79 86 33 30 Shots Fired 442 | . . 27 170 220 7 18 Gun 339 | . . . 144 187 2 6 Cannon 27 | . . 27 . . . . Launcher 76 | . . . 26 33 5 12 Special . | . . . . . . . Kinetic 336 | . . 27 132 169 2 6 Thermal 30 | . . . 12 18 . . Explosive 76 | . . . 26 33 5 12 Electromagnetic . | . . . . . . . Robot Hit Streak 21 | . . 9 16 21 . 4 Robot Miss Streak 5 | . . 2 2 5 3 5 Penetration Max . | . . . . . . . Secondary Targets 6 | . . . 1 5 . . Max Gunslinging Chain 1 | . . . 1 1 . . Shots Hit Robots 273 | . . 19 110 135 . 9 Core Hits 204 | . . 12 62 109 10 11 Critical Kills 1 | . . . . 1 . . Critical Parts Destroyed 4 | . . . 3 1 . . Critical Strikes 6 | . . . 4 2 . . Burn 1 | . . . 1 . . . Destroy 5 | . . . 3 2 . . Melee Attacks . | . . . . . . . Impact . | . . . . . . . Slashing . | . . . . . . . Piercing . | . . . . . . . Sneak Attacks . | . . . . . . . Combat Hostiles . | . . . . . . . Follow-up Attacks . | . . . . . . . Damage Inflicted 8223 | . . 354 2894 4133 336 506 Guns 3616 | . . . 1495 2081 . 40 Cannons 354 | . . 354 . . . . Explosions 4253 | . . . 1399 2052 336 466 Melee . | . . . . . . . Ramming . | . . . . . . . Kinetic 3647 | . . 354 1380 1873 . 40 Thermal 323 | . . . 115 208 . . Explosive 4253 | . . . 1399 2052 336 466 Electromagnetic . | . . . . . . . Impact . | . . . . . . . Slashing . | . . . . . . . Piercing . | . . . . . . . Highest Corruption 2 | . . . 2 . . . Average Corruption 2 | . . . 2 . . . Corruption Purged . | . . . . . . . Corruption Blocked . | . . . . . . . Effects 3 | . . . 3 . . . Message Errors 1 | . . . 1 . . . Heat Flow Errors 1 | . . . 1 . . . Energy Discharges 1 | . . . 1 . . . Overload Shots . | . . . . . . . Overflow Damage 214 | . . . 120 53 16 25 Projectiles . | . . . . . . . Explosions 214 | . . . 120 53 16 25 Melee . | . . . . . . . Knockbacks . | . . . . . . . Impact . | . . . . . . . Kinetic . | . . . . . . . Secondary . | . . . . . . . Self-Inflicted Damage 439 | . . . 187 196 56 . Shots 18 | . . . 8 7 3 . Rammed 2 | 1 . . 1 . . . Targets Rammed 2 | 1 . . 1 . . . Kicked . | . . . . . . . Crushed . | . . . . . . . Highest Temperature 259 | . . 6 181 259 10 19 Average Temperature 25 | . . 3 33 25 6 11 Received Heat Transfer 1038 | . 120 75 321 405 9 108 Siege Activations . | . . . . . . . Martial Activations . | . . . . . . . Shielding Activations . | . . . . . . . Robots Disrupted . | . . . . . . . Combat Hostiles . | . . . . . . . Robots Corrupted . | . . . . . . . Combat Hostiles . | . . . . . . . Parts Fried . | . . . . . . . Impact Corruptions . | . . . . . . . Robots Melted . | . . . . . . . Combat Hostiles . | . . . . . . . Parts Melted . | . . . . . . . Heat Transferred 567 | . . . 370 197 . . Parts Sabotaged . | . . . . . . . Parts Stolen . | . . . . . . . Parts Stripped . | . . . . . . . Power Chain Reactions . | . . . . . . . Alert | -11 -10 -10 -9 -8 -8 -8 ------- Run | Yrd Mat Min Mat Mat Gar Mat Maximum Alert Level 2 | . . . 2 2 2 1 Low Security (%) 45 | 100 100 100 76 18 . . Level 1 40 | . . . 6 67 . 100 Level 2 14 | . . . 17 13 100 . Level 3 . | . . . . . . . Level 4 . | . . . . . . . Level 5 . | . . . . . . . High Security . | . . . . . . . Max Security . | . . . . . . . Peak Influence 698 | . . 120 595 698 618 385 Initial 449 | . . . 37 245 449 300 Average 227 | . . 57 204 273 530 280 Influence Increases 3129 | . . 255 1218 1242 189 225 Destroy 0b10 Robot/C 1720 | . . 180 680 580 160 120 Destroy 0b10 Robot/NC 285 | . . 15 85 170 . 15 Destroy Leader 382 | . . 40 142 168 . 32 Allied During Kill 41 | . . 5 36 . . . Trap Triggered on 0b10 40 | . . . . 40 . . Successful Hack 32 | . . . . 32 . . Disable Machine 105 | . . . 45 60 . . Destroy Structure 419 | . . . 140 192 29 58 Partial Spotted 30 | . . . 30 . . . Lose Combat Pursuer 75 | . . 15 60 . . . Influence Decreases 2764 | . . 160 730 1133 263 478 Entered New Map 957 | . . . 58 338 243 318 Time Decay 1317 | . . 150 452 595 . 120 Lost Part 280 | . . 10 160 50 20 40 Lost Ally 60 | . . . 60 . . . Purge Threat 150 | . . . . 150 . . Squads Dispatched 11 | . 1 . 2 6 . 2 Investigation 3 | . 1 . 1 1 . . Extermination . | . . . . . . . Reinforcement 5 | . . . 1 2 . 2 Assault . | . . . . . . . Garrison 3 | . . . . 3 . . Intercept . | . . . . . . . Searches Triggered . | . . . . . . . Construction Impeded 2 | . . . . 1 . 1 Haulers Reinforced . | . . . . . . . Active Scanning Responses . | . . . . . . . Cargo Convoy Interrupts . | . . . . . . . Stealth | -11 -10 -10 -9 -8 -8 -8 --------- Run | Yrd Mat Min Mat Mat Gar Mat Distress Signals 7 | . . . 3 3 . 1 Communications Jammed . | . . . . . . . Distress Signals . | . . . . . . . Times Spotted 114 | . 3 11 47 37 6 10 Peak Tracking Total 7 | . 4 3 7 5 5 4 Tactical Retreats 5 | . . 1 4 . . . Traps | -11 -10 -10 -9 -8 -8 -8 ------- Run | Yrd Mat Min Mat Mat Gar Mat Traps Triggered 4 | . 2 . 1 1 . . Indirectly . | . . . . . . . Trap Hack Attempts . | . . . . . . . Triggered . | . . . . . . . Disarmed . | . . . . . . . Reprogrammed 4 | . . . . 4 . . Reused 4 | . . . . 4 . . Traps Extracted . | . . . . . . . Installed . | . . . . . . . Triggered 4 | . . . . 4 . . Machines | -11 -10 -10 -9 -8 -8 -8 ---------- Run | Yrd Mat Min Mat Mat Gar Mat Machines Disabled 7 | . . . 3 4 . . Max in Single Turn 2 | . . . 2 1 . . Machines Repaired . | . . . . . . . Machines Dismantled . | . . . . . . . Machines Sabotaged . | . . . . . . . Overloaded Fab Kills . | . . . . . . . Hacking | -11 -10 -10 -9 -8 -8 -8 --------- Run | Yrd Mat Min Mat Mat Gar Mat Machines Accessed 9 | . . 1 . 8 . . Terminals 6 | . . . . 6 . . Fabricators . | . . . . . . . Repair Stations . | . . . . . . . Recycling Units . | . . . . . . . Scanalyzers 1 | . . . . 1 . . Garrison Access 1 | . . . . 1 . . Total Hacks 19 | . . 1 . 18 . . Successful 11 | . . 1 . 10 . . Failed 8 | . . . . 8 . . Catastrophic 2 | . . . . 2 . . Database Lockouts . | . . . . . . . Manual 13 | . . . . 13 . . Terminals 14 | . . . . 14 . . Fabricators . | . . . . . . . Repair Stations . | . . . . . . . Recycling Units . | . . . . . . . Scanalyzers 2 | . . . . 2 . . Garrison Access 2 | . . . . 2 . . Terminal Hacks 8 | . . 1 . 7 . . Prototype ID Bank 4 | . . . . 4 . . Open Door 1 | . . 1 . . . . Unreport Threat 1 | . . . . 1 . . Reprogram Traps 1 | . . . . 1 . . Dispatch Records 1 | . . . . 1 . . Fabricator Hacks . | . . . . . . . Repair Station Hacks . | . . . . . . . Recycling Unit Hacks . | . . . . . . . Scanalyzer 2 | . . . . 2 . . Insert Component 1 | . . . . 1 . . Analyze 1 | . . . . 1 . . Garrison Access Hacks 1 | . . . . 1 . . Unlock Access 1 | . . . . 1 . . Unauthorized Hacks . | . . . . . . . Terminals . | . . . . . . . Fabricators . | . . . . . . . Repair Stations . | . . . . . . . Recycling Units . | . . . . . . . Scanalyzers . | . . . . . . . Garrison Access . | . . . . . . . Data Cores Recovered . | . . . . . . . Used . | . . . . . . . Hacking Detections 6 | . . . . 6 . . Full Trace Events . | . . . . . . . Feedback Events . | . . . . . . . Feedback Blocked . | . . . . . . . Robot Schematics Acquired . | . . . . . . . Robots Built . | . . . . . . . Authchips . | . . . . . . . Time . | . . . . . . . Total Robot Build Rating . | . . . . . . . Part Schematics Acquired 1 | . . . . 1 . . Parts Built . | . . . . . . . Authchips . | . . . . . . . Time . | . . . . . . . Total Part Build Rating . | . . . . . . . Parts Repaired . | . . . . . . . Time . | . . . . . . . Parts Recycled . | . . . . . . . Recycled Matter . | . . . . . . . Retrieved Matter . | . . . . . . . Retrieved Components . | . . . . . . . Parts Scanalyzed 1 | . . . . 1 . . Part Schematics Acquired 1 | . . . . 1 . . Parts Damaged . | . . . . . . . Bothacking | -11 -10 -10 -9 -8 -8 -8 ------------ Run | Yrd Mat Min Mat Mat Gar Mat Used RIF Installer . | . . . . . . . Robots Hacked . | . . . . . . . Non-combat . | . . . . . . . Combat . | . . . . . . . Robot Hacks Applied . | . . . . . . . Relay Couplers Released . | . . . . . . . Fabnet Peak Effective % . | . . . . . . . Robots Rewired . | . . . . . . . Allies Hacked . | . . . . . . . Hacks Repelled . | . . . . . . . Allies | -11 -10 -10 -9 -8 -8 -8 -------- Run | Yrd Mat Min Mat Mat Gar Mat Total Allies 3 | . . 3 . . . . Largest Group 3 | . . 3 3 . . . Highest-Rated Group 40 | . . 40 40 . . . Highest-Rated Ally 16 | . . 16 16 . . . Total Orders . | . . . . . . . Ally Attacks 54 | . . 6 48 . . . Total Damage 500 | . . 71 429 . . . Kills 9 | . . 1 8 . . . Allies Corrupted . | . . . . . . . Allies Melted . | . . . . . . . Intel | -11 -10 -10 -9 -8 -8 -8 ------- Run | Yrd Mat Min Mat Mat Gar Mat Active Infowar (turns) 2178 | . . . . 1830 94 254 Machine Analysis 2178 | . . . . 1830 94 254 Robot Analysis Total . | . . . . . . . Derelict Logs Recovered 1 | . . 1 . . . . Drone Launches . | . . . . . . . Drone Recoveries . | . . . . . . . Exploration | -11 -10 -10 -9 -8 -8 -8 ------------- Run | Yrd Mat Min Mat Mat Gar Mat Turns Passed 3909 | 67 130 345 1135 1884 94 254 Spaces Moved 1851 | 37 81 168 517 924 38 86 Core 241 | 6 . . 92 134 . 9 Treads 1610 | 31 81 168 425 790 38 77 Legs . | . . . . . . . Wheels . | . . . . . . . Hover . | . . . . . . . Flight . | . . . . . . . Fastest Speed 50 | 50 160 160 50 100 160 240 Average Speed 164 | 142 160 160 152 162 216 259 Slowest Speed 550 | 160 160 160 200 550 240 450 Overloaded Moves . | . . . . . . . Propulsion Burnouts . | . . . . . . . Robots Hopped . | . . . . . . . Potential Cave-ins . | . . . . . . . Cave-ins Triggered 1 | . . . 1 . . . Exploration Rate (%) 31 | 5 24 48 58 65 6 11 Regions Visited 6 Branch Regions 1 Pre-discovered Areas 1 | . . 1 . . . . Known Exits Taken 1 | . . . . 1 . . Unknown Exits Taken 4 | 1 1 1 1 . . . Scrap Searched 1 | . . 1 . . . . Spaces Dug 58 | . . . 31 16 3 8 Terrain Destroyed 587 | . . . 197 273 31 86 Melee . | . . . . . . . Projectile . | . . . . . . . AOE 587 | . . . 197 273 31 86 Terrain Rammed . | . . . . . . . Walls Destroyed . | . . . . . . . Machines Disabled . | . . . . . . . Actions | -11 -10 -10 -9 -8 -8 -8 --------- Run | Yrd Mat Min Mat Mat Gar Mat Total 2340 | 51 82 217 705 1132 46 107 Wait 73 | 8 . 21 31 13 . . Move 1846 | 36 80 167 516 924 37 86 Hop . | . . . . . . . Pick Up 44 | 3 1 1 17 18 1 3 Fast Attach 5 | . . . . 5 . . Attach 36 | 3 1 1 15 15 1 . Detach 4 | . . . . 4 . . Swap 14 | . . . 2 12 . . Drop 6 | . . . 1 5 . . Fire 310 | . . 27 122 136 7 18 Melee . | . . . . . . . Ram . | . . . . . . . Kick . | . . . . . . . Crush 2 | 1 . . 1 . . . Escape Stasis . | . . . . . . . Rewire . | . . . . . . . Trap . | . . . . . . . Miscellaneous . | . . . . . . . Route ------- -11/Scrapyard -10/Materials -10/Mines -9/Materials -8/Materials (discovered 3 exits: [*Fac x2] / Gar) -8/Garrison -8/Materials History --------- Turn | Location | Event 5 | -11/Scrapyard | Discovered new exit (range 15) 68 | -11/Scrapyard | Entered Materials 174 | -10/Materials | Discovered new exit (range 16) 198 | -10/Materials | Entered Mines 214 | -10/Mines | Found the Drone Emporium 303 | -10/Mines | Build established: Mutant 408 | -10/Mines | Core integrity fell below 50% 465 | -10/Mines | Learned location of Zion (-6) 476 | -10/Mines | Assisted by bots powering up and referring to "LRC-V3" 481 | -10/Mines | Discovered new exit (range 16) 543 | -10/Mines | Entered Materials 543 | -9/Materials | Accompanied by 3 allies 543 | -9/Materials | Evolved 2 slots: Utility x2 712 | -9/Materials | Lost 3 parts (1p2n) 798 | -9/Materials | Core integrity fell below 50% 826 | -9/Materials | Lost 3 parts (2n1w) 1134 | -9/Materials | Build established: Scavenger-Mutant 1498 | -9/Materials | Destroyed 9 combat bots 1503 | -9/Materials | Crushed by falling debris 1549 | -9/Materials | Lost 5 parts (2n1u2w) 1595 | -9/Materials | Core integrity fell below 20% 1639 | -9/Materials | Lost 4 parts (1p1n1u1w) 1664 | -9/Materials | Discovered new exit (range 12) 1678 | -9/Materials | Entered another Materials area 1678 | -8/Materials | Evolved 2 slots: Utility x2 1753 | -8/Materials | Build established: Mutant 2011 | -8/Materials | Discovered new exit (range 5) 2394 | -8/Materials | Discovered new exit (range 5) 2876 | -8/Materials | Build established: Hacker-Mutant 3128 | -8/Materials | Core integrity fell below 50% 3266 | -8/Materials | Garrison activated, responded to threat 3562 | -8/Materials | Identified exit to Garrison 3562 | -8/Materials | Entered Garrison 3582 | -8/Garrison | Triggered checkpoint 3587 | -8/Garrison | Core integrity fell below 20% 3641 | -8/Garrison | Discovered new exit (range 5) 3656 | -8/Garrison | Entered Materials 3910 | -8/Materials | Destroyed by G-47 Trooper with Particle Gun Last Messages --------------- The unstable cave ceiling collapses. T-07 Excavator is excavating. Acquired 8 matter. The unstable cave ceiling collapses. Lgt. Assault Rifle crushed. K-01 Serf collects debris. T-07 Excavator is excavating. The unstable cave ceiling collapses. Lgt. Ion Engine crushed. S-10 Pest destroyed. Acquired 17 matter. T-07 Excavator is excavating. Hpw. Shotgun destroyed. K-01 Serf collects debris. Grenade Launcher destroyed. T-07 Excavator is excavating. Acquired 15 matter. Critical hit (Burn: +37). K-01 Serf collects debris. T-07 Excavator is excavating. Map ----- +----------------------------------------------------+ | | | | | | | | | | | | | | | | | | | | | | | | | | | ##########?????????######????????????????????????? | | #??????### #????????????????????????? | | #??????# ##???????????????????????? | | "T" #??????# ## #???????????????????????? | | """ #??????# !% # ##???????????????????????? | | ####+#####??????# T # #???????????????????????? | | #???????# # ###?????????????????????? | | #???????#/! ??????????????????????? | | #???????#!! # ##??????????????????????? | | ######+#####???##! #??????????????????????? | | ## ##### ###????????????????????? | | ## """"" ### ## *[ ####?????????????????? | | ## """"" + = g=@ t ?????????????????? | | ## """"" ## # ## ##g# #?????????????????? | | ## ##### # ## = ####?????????????????? | | ## #???##### ## # #????????????????????? | | ## !! #??????? # # # ##????????????????????? | | ## ! !! #?"""?""" # ##????????????????????? | | ## #?"""?""" # T ##????????????????????? | | ###########?""" """ +?"" #?????????????????????? | | ##?????????????? #? #?????????????????????? | | "?????????????????! ?? #?????????????????????? | | ?????????????????? ?? ##?????????????????????? | | """???????????????? ?? ???????????????????????? | | """??"""???????????##?? ? ???????????????????????? | | """??"T"????????????????? ???????????????????????? | | ?????????????????????????????????????????????????? | | ?????????????????????????????????????????????????? | | ?????????????????????????????????????????????????? | | ?????"""?????????????????????????????????????????? | | ?????"""?????????????????????????????????????????? | | ?????"""?????????????????????????????????????????? | | ?????????????????????????????????????????????????? | | ?????????????????????????????????????????????????? | | ?????????????????????????????????????????????????? | | ?????????????????????????????????????????????????? | | ?????????????????????????????????????????????????? | +----------------------------------------------------+ Best States ------------- Heat Dissipation 31 Energy Generation 14 Energy Capacity 280 Matter Stores 450 Matter Capacity 450 Sight Range 16 Terrain Scan Density 10 Power Shielding 33 Weapon Cycling 15 Evasion (%) 40 Targeting Accuracy 12 Recoil Reduction 2 Matter Filtering 30 Offensive Hacking 10 Defensive Hacking 10 Item Schematics ----------------- Hacking Suite | -8/Materials | Scanalyzed Robot Schematics ------------------ None Fabricated ------------ Nothing Repaired ---------- Nothing Alien Tech Used ----------------- None Achievements -------------- None Challenges ------------ None Game ------ Seed MachineShiftLoader Manual? 0 Play Time 00:28:24 Cumulative 107.0 hours Start 2025.08.28 @ 07:20:37 End 2025.08.28 @ 19:03:03 Sessions 1 Manual Loads 0 Difficulty Rogue Special Mode None Game No. 397 Rogue 397 Adventurer 0 Explorer 0 Win Type - Total 0 Types 0/0/0/0/0/0/0/0/0/0 Lore% 43 Gallery% 43 Achievement% 31 Wizard Run 0 Options --------- Layout 2 ASCII 0 Keyboard 0 Movement Mouse Keybinds 0 Fullscreen 2 Font 24/Smallcaps Map View 50x44 Zoom Use 0% Tactical HUD 0 Map Filters NONE Filters NONE Steam 1 RUN: bd2982f1-e411-4a01-b55e-0c7b64f8aa6d